[Event "Late Titled Tuesday Blitz February 8 2022"]
[White "Gurevich, Dmitry"]
[Black "Tan, Jun Ying"]
[WhiteFideId "2000407"]
[BlackFideId "5710413"]
[WhiteElo "2506"]
[BlackElo "1827"]
[Result "1-0"]
[Round "10"]
[TimeControl "180+1"]
[Date "2022.02.09"]
[WhiteClock "0:00:08"]
[BlackClock "0:00:13"]

1. d4 {[%clk 0:03:00]}  Nf6 {[%clk 0:02:59]} 2. c4 {[%clk 0:03:00]}  e5 {[%clk 0:02:58]} 3. dxe5 {[%clk 0:02:59]}  Ng4 {[%clk 0:02:58]} 4. Bf4 {[%clk 0:02:58]}  Bb4+ {[%clk 0:02:58]} 5. Nc3 {[%clk 0:02:57]}  Nc6 {[%clk 0:02:55]} 6. Nf3 {[%clk 0:02:56]}  Qe7 {[%clk 0:02:55]} 7. Qd5 {[%clk 0:02:52]}  f6 {[%clk 0:02:53]} 8. exf6 {[%clk 0:02:48]}  Bxc3+ {[%clk 0:02:53]} 9. bxc3 {[%clk 0:02:47]}  Nxf6 {[%clk 0:02:49]} 10. Qd3 {[%clk 0:02:44]}  d6 {[%clk 0:02:41]} 11. g3 {[%clk 0:02:42]}  O-O {[%clk 0:02:36]} 12. Bg2 {[%clk 0:02:42]}  Ne4 {[%clk 0:02:37]} 13. Nd4 {[%clk 0:02:36]}  Nxf2 {[%clk 0:01:46]} 14. Kxf2 {[%clk 0:02:27]}  g5 {[%clk 0:01:42]} 15. Rhf1 {[%clk 0:02:03]}  gxf4 {[%clk 0:01:30]} 16. Kg1 {[%clk 0:02:03]}  Ne5 {[%clk 0:01:26]} 17. Qe4 {[%clk 0:01:56]}  fxg3 {[%clk 0:01:17]} 18. Rxf8+ {[%clk 0:01:48]}  Qxf8 {[%clk 0:01:17]} 19. hxg3 {[%clk 0:01:46]}  Bg4 {[%clk 0:01:09]} 20. Rf1 {[%clk 0:01:40]}  Qh6 {[%clk 0:01:01]} 21. Nf3 {[%clk 0:01:30]}  Qg6 {[%clk 0:00:47]} 22. Nxe5 {[%clk 0:01:27]}  Qxe4 {[%clk 0:00:44]} 23. Bxe4 {[%clk 0:01:26]}  dxe5 {[%clk 0:00:44]} 24. Bxb7 {[%clk 0:01:25]}  Rb8 {[%clk 0:00:43]} 25. Bd5+ {[%clk 0:01:24]}  Kg7 {[%clk 0:00:42]} 26. Rf7+ {[%clk 0:01:22]}  Kg6 {[%clk 0:00:42]} 27. Rxc7 {[%clk 0:01:21]}  Bxe2 {[%clk 0:00:42]} 28. Rxa7 {[%clk 0:01:16]}  Rc8 {[%clk 0:00:40]} 29. Be4+ {[%clk 0:01:08]}  Kg5 {[%clk 0:00:38]} 30. Kf2 {[%clk 0:00:49]}  Bxc4 {[%clk 0:00:37]} 31. Bxh7 {[%clk 0:00:47]}  Rb8 {[%clk 0:00:33]} 32. Ke3 {[%clk 0:00:42]}  Rb2 {[%clk 0:00:31]} 33. Bd3 {[%clk 0:00:40]}  Bxa2 {[%clk 0:00:27]} 34. Ra5 {[%clk 0:00:35]}  Kf6 {[%clk 0:00:21]} 35. c4 {[%clk 0:00:31]}  Bb1 {[%clk 0:00:17]} 36. Ra6+ {[%clk 0:00:25]}  Kf7 {[%clk 0:00:15]} 37. Bxb1 {[%clk 0:00:22]}  Rxb1 {[%clk 0:00:16]} 38. Ke4 {[%clk 0:00:20]}  Rc1 {[%clk 0:00:16]} 39. Rc6 {[%clk 0:00:19]}  Rc3 {[%clk 0:00:13]} 40. g4 {[%clk 0:00:17]}  Rg3 {[%clk 0:00:13]} 41. Kf5 {[%clk 0:00:16]}  e4 {[%clk 0:00:13]} 42. Rc7+ {[%clk 0:00:11]}  Ke8 {[%clk 0:00:13]} 43. Rc5 {[%clk 0:00:09]}  Kf7 {[%clk 0:00:09]} 44. Kf4 {[%clk 0:00:08]}  Rg1 {[%clk 0:00:08]} 45. Re5 {[%clk 0:00:05]}  Rf1+ {[%clk 0:00:05]} 46. Kxe4 {[%clk 0:00:05]}  Rg1 {[%clk 0:00:06]} 47. Rf5+ {[%clk 0:00:04]}  Ke6 {[%clk 0:00:05]} 48. Rf4 {[%clk 0:00:05]}  Rc1 {[%clk 0:00:05]} 49. Kd4 {[%clk 0:00:05]}  Rd1+ {[%clk 0:00:05]} 50. Kc5 {[%clk 0:00:04]}  Ke5 {[%clk 0:00:05]} 51. Rf8 {[%clk 0:00:03]}  Rg1 {[%clk 0:00:05]} 52. Kc6 {[%clk 0:00:03]}  Rxg4 {[%clk 0:00:04]} 53. c5 {[%clk 0:00:03]}  Ke6 {[%clk 0:00:04]} 54. Re8+ {[%clk 0:00:03]}  Kf7 {[%clk 0:00:04]} 55. Re1 {[%clk 0:00:04]}  Rg2 {[%clk 0:00:04]} 56. Kc7 {[%clk 0:00:04]}  Rc2 {[%clk 0:00:04]} 57. c6 {[%clk 0:00:04]}  Kf8 {[%clk 0:00:04]} 58. Kd7 {[%clk 0:00:03]}  Kf7 {[%clk 0:00:04]} 59. c7 {[%clk 0:00:03]}  Rd2+ {[%clk 0:00:04]} 60. Kc8 {[%clk 0:00:03]}  Kf6 {[%clk 0:00:04]} 61. Rb1 {[%clk 0:00:03]}  Ke7 {[%clk 0:00:03]} 62. Kb8 {[%clk 0:00:03]}  Rc2 {[%clk 0:00:02]} 63. c8=Q {[%clk 0:00:03]}  Rd2 {[%clk 0:00:02]} 64. Qc7+ {[%clk 0:00:01]}  Ke6 {[%clk 0:00:02]} 65. Qb6+ {[%clk 0:00:02]}  Ke5 {[%clk 0:00:02]} 66. Rb5+ {[%clk 0:00:02]}  Ke4 {[%clk 0:00:02]} 67. Rb4+ {[%clk 0:00:02]}  Kd3 {[%clk 0:00:02]} 68. Qb5+ {[%clk 0:00:03]}  Ke3 {[%clk 0:00:03]} 69. Qc5+ {[%clk 0:00:03]}  Ke2 {[%clk 0:00:03]} 70. Rb3 {[%clk 0:00:03]}  Ke1 {[%clk 0:00:01]} 71. Qc3 {[%clk 0:00:03]}  Kd1 {[%clk 0:00:02]} 72. Qxd2+ {[%clk 0:00:03]}  Kxd2 {[%clk 0:00:02]} 73. Rb7 {[%clk 0:00:04]}  Kc2 {[%clk 0:00:03]} 74. Kc7 {[%clk 0:00:04]}  Kd3 {[%clk 0:00:03]} 75. Kc6 {[%clk 0:00:05]}  Kc4 {[%clk 0:00:04]} 76. Rb5 {[%clk 0:00:05]}  Kd4 {[%clk 0:00:05]} 77. Kb6 {[%clk 0:00:06]}  Kc4 {[%clk 0:00:05]} 78. Rc5+ {[%clk 0:00:06]}  Kd4 {[%clk 0:00:06]} 79. Kb5 {[%clk 0:00:06]}  Ke4 {[%clk 0:00:07]} 80. Kc4 {[%clk 0:00:06]}  Ke3 {[%clk 0:00:07]} 81. Rd5 {[%clk 0:00:06]}  Ke4 {[%clk 0:00:08]} 82. Kc5 {[%clk 0:00:07]}  Ke3 {[%clk 0:00:08]} 83. Rd4 {[%clk 0:00:07]}  Kf3 {[%clk 0:00:09]} 84. Kc4 {[%clk 0:00:08]}  Ke3 {[%clk 0:00:09]} 85. Kc3 {[%clk 0:00:08]}  Kf3 {[%clk 0:00:10]} 86. Kd3 {[%clk 0:00:08]}  Kg3 {[%clk 0:00:10]} 87. Ke3 {[%clk 0:00:08]}  Kg2 {[%clk 0:00:11]} 88. Ke2 {[%clk 0:00:08]}  Kg3 {[%clk 0:00:12]} 89. Re4 {[%clk 0:00:09]}  Kg2 {[%clk 0:00:12]} 90. Rg4+ {[%clk 0:00:09]}  Kh3 {[%clk 0:00:11]} 91. Rg8 {[%clk 0:00:10]}  Kh4 {[%clk 0:00:11]} 92. Kf3 {[%clk 0:00:10]}  Kh5 {[%clk 0:00:12]} 93. Rg1 {[%clk 0:00:09]}  Kh4 {[%clk 0:00:11]} 94. Rg7 {[%clk 0:00:08]}  Kh5 {[%clk 0:00:11]} 95. Kf4 {[%clk 0:00:08]}  Kh6 {[%clk 0:00:11]} 96. Rg1 {[%clk 0:00:08]}  Kh7 {[%clk 0:00:11]} 97. Rg2 {[%clk 0:00:09]}  Kh6 {[%clk 0:00:11]} 98. Kf5 {[%clk 0:00:09]}  Kh7 {[%clk 0:00:11]} 99. Kf6 {[%clk 0:00:09]}  Kh8 {[%clk 0:00:12]} 100. Kf7 {[%clk 0:00:09]}  Kh7 {[%clk 0:00:13]} 101. Rh2# {[%clk 0:00:08]} 1-0


[Site "https://www.chess.com"]

[Event "Late Titled Tuesday Blitz February 8 2022"]
[White "Horvath, Dominik"]
[Black "Velikanov, Alexander"]
[WhiteFideId "1642561"]
[BlackFideId "2039290"]
[WhiteElo "2336"]
[BlackElo "2259"]
[Result "1-0"]
[Round "10"]
[TimeControl "180+1"]
[Date "2022.02.08"]
[WhiteClock "0:00:11"]
[BlackClock "0:00:20"]

1. e4 {[%clk 0:03:00]}  e5 {[%clk 0:02:59]} 2. f4 {[%clk 0:02:57]}  exf4 {[%clk 0:02:53]} 3. Nf3 {[%clk 0:02:56]}  Nf6 {[%clk 0:02:47]} 4. e5 {[%clk 0:02:55]}  Nh5 {[%clk 0:02:46]} 5. d4 {[%clk 0:02:54]}  d6 {[%clk 0:02:45]} 6. Qe2 {[%clk 0:02:51]}  d5 {[%clk 0:02:15]} 7. Nc3 {[%clk 0:02:47]}  Nc6 {[%clk 0:02:07]} 8. Bd2 {[%clk 0:02:43]}  Bf5 {[%clk 0:02:03]} 9. O-O-O {[%clk 0:02:39]}  Nb4 {[%clk 0:02:03]} 10. Ne1 {[%clk 0:02:15]}  g6 {[%clk 0:02:02]} 11. Qf2 {[%clk 0:02:14]}  Be7 {[%clk 0:01:34]} 12. a3 {[%clk 0:02:08]}  Bh4 {[%clk 0:01:33]} 13. Qf3 {[%clk 0:01:54]}  Bxe1 {[%clk 0:01:32]} 14. axb4 {[%clk 0:01:29]}  Bxd2+ {[%clk 0:01:32]} 15. Rxd2 {[%clk 0:01:29]}  c6 {[%clk 0:01:32]} 16. Ne2 {[%clk 0:01:05]}  Qg5 {[%clk 0:01:19]} 17. Kb1 {[%clk 0:00:59]}  Be4 {[%clk 0:01:13]} 18. Qc3 {[%clk 0:00:54]}  f6 {[%clk 0:01:07]} 19. b5 {[%clk 0:00:43]}  O-O {[%clk 0:01:03]} 20. Ng1 {[%clk 0:00:31]}  fxe5 {[%clk 0:01:00]} 21. dxe5 {[%clk 0:00:30]}  cxb5 {[%clk 0:00:49]} 22. Nf3 {[%clk 0:00:29]}  Qf5 {[%clk 0:00:48]} 23. Bxb5 {[%clk 0:00:20]}  Rac8 {[%clk 0:00:48]} 24. Qb3 {[%clk 0:00:20]}  Rc5 {[%clk 0:00:39]} 25. Rc1 {[%clk 0:00:20]}  Rfc8 {[%clk 0:00:39]} 26. Bd3 {[%clk 0:00:18]}  R8c7 {[%clk 0:00:32]} 27. Rcd1 {[%clk 0:00:13]}  Bxf3 {[%clk 0:00:30]} 28. Bxf5 {[%clk 0:00:12]}  Bxd1 {[%clk 0:00:29]} 29. Be6+ {[%clk 0:00:12]}  Kg7 {[%clk 0:00:29]} 30. Rxd1 {[%clk 0:00:13]}  f3 {[%clk 0:00:25]} 31. gxf3 {[%clk 0:00:13]}  Nf4 {[%clk 0:00:25]} 32. Bg4 {[%clk 0:00:12]}  Re7 {[%clk 0:00:23]} 33. Qe3 {[%clk 0:00:12]}  Rc4 {[%clk 0:00:20]} 34. b3 {[%clk 0:00:11]}  Rb4 {[%clk 0:00:20]} 35. Qc5 {[%clk 0:00:11]} 1-0


[Site "https://www.chess.com"]

[Event "Late Titled Tuesday Blitz February 8 2022"]
[White "Janaszak, Dawid"]
[Black "Novikov, Evgenij"]
[WhiteFideId "1119206"]
[BlackFideId "4125380"]
[WhiteElo "2199"]
[BlackElo "2242"]
[Result "1-0"]
[Round "10"]
[TimeControl "180+1"]
[Date "2022.02.09"]
[WhiteClock "0:00:25"]
[BlackClock "0:00:12"]

1. e4 {[%clk 0:03:00]}  c5 {[%clk 0:02:59]} 2. Na3 {[%clk 0:02:59]}  d6 {[%clk 0:02:42]} 3. f4 {[%clk 0:02:57]}  Nc6 {[%clk 0:02:39]} 4. Nf3 {[%clk 0:02:56]}  Nf6 {[%clk 0:02:34]} 5. d3 {[%clk 0:02:55]}  Bg4 {[%clk 0:02:25]} 6. Be2 {[%clk 0:02:54]}  Rb8 {[%clk 0:02:08]} 7. Nc4 {[%clk 0:02:52]}  e6 {[%clk 0:01:52]} 8. O-O {[%clk 0:02:48]}  Be7 {[%clk 0:01:45]} 9. Ne3 {[%clk 0:02:45]}  Bxf3 {[%clk 0:01:44]} 10. Bxf3 {[%clk 0:02:42]}  Nd4 {[%clk 0:01:44]} 11. c3 {[%clk 0:02:39]}  Nxf3+ {[%clk 0:01:43]} 12. Qxf3 {[%clk 0:02:39]}  d5 {[%clk 0:01:28]} 13. e5 {[%clk 0:02:37]}  Nd7 {[%clk 0:01:25]} 14. Bd2 {[%clk 0:02:22]}  O-O {[%clk 0:01:24]} 15. Rae1 {[%clk 0:02:20]}  b5 {[%clk 0:01:16]} 16. Ng4 {[%clk 0:02:20]}  g6 {[%clk 0:01:04]} 17. Nh6+ {[%clk 0:02:04]}  Kg7 {[%clk 0:01:02]} 18. f5 {[%clk 0:02:05]}  exf5 {[%clk 0:00:57]} 19. Qxd5 {[%clk 0:01:52]}  Nb6 {[%clk 0:00:56]} 20. Qf3 {[%clk 0:01:39]}  Qd5 {[%clk 0:00:50]} 21. Qg3 {[%clk 0:01:33]}  Kh8 {[%clk 0:00:43]} 22. e6 {[%clk 0:01:01]}  Bd6 {[%clk 0:00:30]} 23. Qh4 {[%clk 0:00:43]}  fxe6 {[%clk 0:00:24]} 24. Bg5 {[%clk 0:00:42]}  Be5 {[%clk 0:00:15]} 25. Rf3 {[%clk 0:00:33]}  Bg7 {[%clk 0:00:13]} 26. Rh3 {[%clk 0:00:31]}  Bd4+ {[%clk 0:00:11]} 27. cxd4 {[%clk 0:00:29]}  Qxd4+ {[%clk 0:00:11]} 28. Qxd4+ {[%clk 0:00:25]}  cxd4 {[%clk 0:00:12]} 29. Rxe6 {[%clk 0:00:25]}  Rbe8 {[%clk 0:00:11]} 30. Rxe8 {[%clk 0:00:24]}  Rxe8 {[%clk 0:00:12]} 31. Bf6# {[%clk 0:00:25]} 1-0


[Site "https://www.chess.com"]

[Event "Late Titled Tuesday Blitz February 8 2022"]
[White "Jarocka, Liwia"]
[Black "Oro, Luis"]
[WhiteFideId "21807558"]
[BlackFideId "104094"]
[WhiteElo "1896"]
[BlackElo "2299"]
[Result "1-0"]
[Round "10"]
[TimeControl "180+1"]
[Date "2022.02.09"]
[WhiteClock "0:00:11"]
[BlackClock "0:00:03"]

1. c4 {[%clk 0:03:00]}  Nf6 {[%clk 0:02:59]} 2. Nc3 {[%clk 0:03:01]}  g6 {[%clk 0:02:59]} 3. g3 {[%clk 0:03:00]}  Bg7 {[%clk 0:03:00]} 4. Bg2 {[%clk 0:03:01]}  O-O {[%clk 0:03:00]} 5. d4 {[%clk 0:03:01]}  d6 {[%clk 0:03:00]} 6. Nf3 {[%clk 0:03:01]}  Nbd7 {[%clk 0:02:58]} 7. O-O {[%clk 0:03:02]}  e5 {[%clk 0:02:58]} 8. dxe5 {[%clk 0:03:01]}  dxe5 {[%clk 0:02:58]} 9. e4 {[%clk 0:02:59]}  c6 {[%clk 0:02:55]} 10. b3 {[%clk 0:02:55]}  Qc7 {[%clk 0:02:54]} 11. Bb2 {[%clk 0:02:54]}  Nc5 {[%clk 0:02:51]} 12. Qe2 {[%clk 0:02:49]}  Bg4 {[%clk 0:02:49]} 13. h3 {[%clk 0:02:47]}  Bxf3 {[%clk 0:02:47]} 14. Bxf3 {[%clk 0:02:48]}  Ne6 {[%clk 0:02:43]} 15. Nd1 {[%clk 0:02:43]}  Nd4 {[%clk 0:02:41]} 16. Bxd4 {[%clk 0:02:42]}  exd4 {[%clk 0:02:42]} 17. Nb2 {[%clk 0:02:38]}  c5 {[%clk 0:02:41]} 18. Nd3 {[%clk 0:02:36]}  Nd7 {[%clk 0:02:40]} 19. Bg2 {[%clk 0:02:31]}  Rfe8 {[%clk 0:02:38]} 20. Rae1 {[%clk 0:02:30]}  f5 {[%clk 0:02:34]} 21. Qc2 {[%clk 0:02:26]}  fxe4 {[%clk 0:02:33]} 22. Rxe4 {[%clk 0:02:24]}  Rxe4 {[%clk 0:02:32]} 23. Bxe4 {[%clk 0:02:25]}  Re8 {[%clk 0:02:31]} 24. Bg2 {[%clk 0:02:24]}  Nf6 {[%clk 0:02:24]} 25. Nf4 {[%clk 0:02:21]}  b6 {[%clk 0:02:22]} 26. Qd2 {[%clk 0:02:19]}  Bh6 {[%clk 0:02:19]} 27. Nd5 {[%clk 0:02:10]}  Nxd5 {[%clk 0:01:55]} 28. Bxd5+ {[%clk 0:01:53]}  Kg7 {[%clk 0:01:54]} 29. Qd1 {[%clk 0:01:51]}  Re3 {[%clk 0:01:24]} 30. fxe3 {[%clk 0:01:39]}  Qxg3+ {[%clk 0:01:23]} 31. Bg2 {[%clk 0:01:38]}  Bxe3+ {[%clk 0:01:19]} 32. Kh1 {[%clk 0:01:37]}  Bf4 {[%clk 0:01:16]} 33. Rxf4 {[%clk 0:01:35]}  Qxf4 {[%clk 0:01:16]} 34. Qf3 {[%clk 0:01:35]}  Qd6 {[%clk 0:01:08]} 35. Qb7+ {[%clk 0:01:32]}  Kh6 {[%clk 0:01:08]} 36. Qd5 {[%clk 0:01:31]}  Qf4 {[%clk 0:01:06]} 37. Qf3 {[%clk 0:01:19]}  Qd6 {[%clk 0:01:03]} 38. Qd3 {[%clk 0:01:18]}  Qe5 {[%clk 0:01:02]} 39. a4 {[%clk 0:01:17]}  Qe1+ {[%clk 0:01:00]} 40. Kh2 {[%clk 0:01:15]}  Qe5+ {[%clk 0:01:00]} 41. Kg1 {[%clk 0:01:13]}  Kg7 {[%clk 0:00:56]} 42. Qe4 {[%clk 0:01:11]}  Qd6 {[%clk 0:00:55]} 43. Kf2 {[%clk 0:01:09]}  Qf6+ {[%clk 0:00:46]} 44. Ke2 {[%clk 0:01:09]}  Qg5 {[%clk 0:00:44]} 45. Qb7+ {[%clk 0:01:05]}  Kh6 {[%clk 0:00:44]} 46. Qf3 {[%clk 0:00:55]}  Qe5+ {[%clk 0:00:41]} 47. Kd2 {[%clk 0:00:52]}  Qh2 {[%clk 0:00:31]} 48. a5 {[%clk 0:00:49]}  Qe5 {[%clk 0:00:24]} 49. axb6 {[%clk 0:00:48]}  axb6 {[%clk 0:00:25]} 50. Kd3 {[%clk 0:00:46]}  Qe1 {[%clk 0:00:20]} 51. Qf8+ {[%clk 0:00:43]}  Kg5 {[%clk 0:00:18]} 52. Qd8+ {[%clk 0:00:42]}  Kh6 {[%clk 0:00:18]} 53. Qf8+ {[%clk 0:00:39]}  Kg5 {[%clk 0:00:18]} 54. Qf3 {[%clk 0:00:31]}  Qb1+ {[%clk 0:00:15]} 55. Ke2 {[%clk 0:00:30]}  Qc2+ {[%clk 0:00:15]} 56. Kf1 {[%clk 0:00:30]}  Qc1+ {[%clk 0:00:16]} 57. Kf2 {[%clk 0:00:31]}  Qd2+ {[%clk 0:00:15]} 58. Qe2 {[%clk 0:00:29]}  Qf4+ {[%clk 0:00:14]} 59. Ke1 {[%clk 0:00:29]}  Qg3+ {[%clk 0:00:14]} 60. Kd2 {[%clk 0:00:27]}  Qc3+ {[%clk 0:00:13]} 61. Kd1 {[%clk 0:00:27]}  Qxb3+ {[%clk 0:00:14]} 62. Qc2 {[%clk 0:00:26]}  Qg3 {[%clk 0:00:13]} 63. Qd2+ {[%clk 0:00:23]}  Kf6 {[%clk 0:00:12]} 64. Bd5 {[%clk 0:00:21]}  Qxh3 {[%clk 0:00:10]} 65. Qf4+ {[%clk 0:00:20]}  Qf5 {[%clk 0:00:10]} 66. Qd6+ {[%clk 0:00:18]}  Kg5 {[%clk 0:00:09]} 67. Qxb6 {[%clk 0:00:18]}  Qd3+ {[%clk 0:00:08]} 68. Ke1 {[%clk 0:00:17]}  Qe3+ {[%clk 0:00:08]} 69. Kd1 {[%clk 0:00:18]}  Qe7 {[%clk 0:00:07]} 70. Qb1 {[%clk 0:00:14]}  h5 {[%clk 0:00:06]} 71. Qc1+ {[%clk 0:00:15]}  Kf5 {[%clk 0:00:05]} 72. Qd2 {[%clk 0:00:13]}  Qe3 {[%clk 0:00:02]} 73. Qxe3 {[%clk 0:00:13]}  dxe3 {[%clk 0:00:03]} 74. Ke2 {[%clk 0:00:14]}  Kf4 {[%clk 0:00:03]} 75. Bf7 {[%clk 0:00:13]}  h4 {[%clk 0:00:02]} 76. Bxg6 {[%clk 0:00:11]}  h3 {[%clk 0:00:03]} 77. Bf7 {[%clk 0:00:11]} 1-0


[Site "https://www.chess.com"]

[Event "Late Titled Tuesday Blitz February 8 2022"]
[White "Kamsky, Gata"]
[Black "Shahade, Gregory"]
[WhiteFideId "2000024"]
[BlackFideId "2009064"]
[WhiteElo "2645"]
[BlackElo "2671"]
[Result "1-0"]
[Round "10"]
[TimeControl "180+1"]
[Date "2022.02.08"]
[WhiteClock "0:01:24"]
[BlackClock "0:00:27"]

1. d4 {[%clk 0:03:00]}  Nf6 {[%clk 0:02:59]} 2. Nf3 {[%clk 0:03:00]}  g6 {[%clk 0:02:59]} 3. Bg5 {[%clk 0:02:58]}  Bg7 {[%clk 0:02:59]} 4. c3 {[%clk 0:02:58]}  O-O {[%clk 0:02:59]} 5. Nbd2 {[%clk 0:02:58]}  d6 {[%clk 0:03:00]} 6. e4 {[%clk 0:02:57]}  c5 {[%clk 0:02:59]} 7. d5 {[%clk 0:02:57]}  e6 {[%clk 0:02:56]} 8. dxe6 {[%clk 0:02:56]}  Bxe6 {[%clk 0:02:55]} 9. Bc4 {[%clk 0:02:56]}  Bxc4 {[%clk 0:02:53]} 10. Nxc4 {[%clk 0:02:55]}  d5 {[%clk 0:02:43]} 11. Bxf6 {[%clk 0:02:54]}  Qxf6 {[%clk 0:02:39]} 12. Qxd5 {[%clk 0:02:53]}  Nc6 {[%clk 0:02:38]} 13. O-O {[%clk 0:02:49]}  b6 {[%clk 0:02:33]} 14. e5 {[%clk 0:02:43]}  Qe6 {[%clk 0:02:29]} 15. Qxe6 {[%clk 0:02:37]}  fxe6 {[%clk 0:02:29]} 16. Rfd1 {[%clk 0:02:34]}  b5 {[%clk 0:02:25]} 17. Rd6 {[%clk 0:02:33]}  Rac8 {[%clk 0:02:20]} 18. Ncd2 {[%clk 0:02:31]}  Rfe8 {[%clk 0:02:06]} 19. Re1 {[%clk 0:02:29]}  Rc7 {[%clk 0:02:02]} 20. Nb3 {[%clk 0:02:26]}  Bf8 {[%clk 0:01:49]} 21. Rdd1 {[%clk 0:02:25]}  a5 {[%clk 0:01:48]} 22. a4 {[%clk 0:02:22]}  bxa4 {[%clk 0:01:47]} 23. Nbd2 {[%clk 0:02:22]}  Rb8 {[%clk 0:01:33]} 24. Nc4 {[%clk 0:02:22]}  Ne7 {[%clk 0:01:33]} 25. Ra1 {[%clk 0:02:18]}  Nd5 {[%clk 0:01:30]} 26. Rxa4 {[%clk 0:02:15]}  Ra7 {[%clk 0:01:27]} 27. Rea1 {[%clk 0:02:05]}  Be7 {[%clk 0:01:15]} 28. g3 {[%clk 0:01:59]}  Bd8 {[%clk 0:01:15]} 29. Nfd2 {[%clk 0:01:59]}  Rb5 {[%clk 0:01:13]} 30. Ne4 {[%clk 0:01:56]}  Bc7 {[%clk 0:01:11]} 31. Kg2 {[%clk 0:01:54]}  Kg7 {[%clk 0:01:10]} 32. h4 {[%clk 0:01:54]}  h6 {[%clk 0:01:09]} 33. Rd1 {[%clk 0:01:52]}  Rab7 {[%clk 0:01:06]} 34. Rd2 {[%clk 0:01:40]}  Rb8 {[%clk 0:01:04]} 35. f4 {[%clk 0:01:38]}  Rd8 {[%clk 0:00:56]} 36. Kf3 {[%clk 0:01:36]}  Rf8 {[%clk 0:00:54]} 37. Ke2 {[%clk 0:01:33]}  Rfb8 {[%clk 0:00:47]} 38. Ra2 {[%clk 0:01:32]}  Rf8 {[%clk 0:00:44]} 39. Na3 {[%clk 0:01:30]}  Rb3 {[%clk 0:00:40]} 40. Nxc5 {[%clk 0:01:29]}  Rb6 {[%clk 0:00:35]} 41. Nd7 {[%clk 0:01:29]}  Rfb8 {[%clk 0:00:29]} 42. Nxb8 {[%clk 0:01:28]}  Rxb8 {[%clk 0:00:29]} 43. Nc4 {[%clk 0:01:27]}  g5 {[%clk 0:00:27]} 44. hxg5 {[%clk 0:01:25]}  hxg5 {[%clk 0:00:28]} 45. f5 {[%clk 0:01:24]}  exf5 {[%clk 0:00:27]} 46. Rxd5 {[%clk 0:01:24]} 1-0


[Site "https://www.chess.com"]

[Event "Late Titled Tuesday Blitz February 8 2022"]
[White "Kanyamarala, Trisha"]
[Black "Lopez Del Alamo, Antonio"]
[WhiteFideId "45004722"]
[BlackFideId "2227339"]
[WhiteElo "2002"]
[BlackElo "2082"]
[Result "1-0"]
[Round "10"]
[TimeControl "180+1"]
[Date "2022.02.09"]
[WhiteClock "0:00:19"]
[BlackClock "0:00:16"]

1. c4 {[%clk 0:03:00]}  Nf6 {[%clk 0:02:58]} 2. Nc3 {[%clk 0:03:00]}  g6 {[%clk 0:02:57]} 3. g3 {[%clk 0:02:59]}  Bg7 {[%clk 0:02:56]} 4. Bg2 {[%clk 0:03:00]}  d6 {[%clk 0:02:57]} 5. Nf3 {[%clk 0:02:58]}  O-O {[%clk 0:02:56]} 6. O-O {[%clk 0:02:58]}  e5 {[%clk 0:02:55]} 7. d3 {[%clk 0:02:58]}  Nc6 {[%clk 0:02:48]} 8. a3 {[%clk 0:02:55]}  a5 {[%clk 0:02:47]} 9. Rb1 {[%clk 0:02:54]}  h6 {[%clk 0:02:41]} 10. b4 {[%clk 0:02:54]}  axb4 {[%clk 0:02:42]} 11. axb4 {[%clk 0:02:54]}  Be6 {[%clk 0:02:34]} 12. Bd2 {[%clk 0:02:49]}  Qd7 {[%clk 0:02:25]} 13. Re1 {[%clk 0:02:46]}  Bh3 {[%clk 0:02:23]} 14. Bh1 {[%clk 0:02:44]}  Nd8 {[%clk 0:02:23]} 15. Qc1 {[%clk 0:02:42]}  Kh7 {[%clk 0:02:22]} 16. b5 {[%clk 0:02:39]}  Ng4 {[%clk 0:02:21]} 17. Nd5 {[%clk 0:02:28]}  f5 {[%clk 0:02:16]} 18. Qc2 {[%clk 0:02:17]}  Ne6 {[%clk 0:02:10]} 19. Bc3 {[%clk 0:01:59]}  e4 {[%clk 0:02:03]} 20. dxe4 {[%clk 0:01:55]}  fxe4 {[%clk 0:02:01]} 21. Qxe4 {[%clk 0:01:47]}  Rae8 {[%clk 0:02:01]} 22. Bxg7 {[%clk 0:01:43]}  Qxg7 {[%clk 0:02:02]} 23. Qc2 {[%clk 0:01:36]}  Qf7 {[%clk 0:01:39]} 24. Rbd1 {[%clk 0:01:23]}  c5 {[%clk 0:01:38]} 25. Bg2 {[%clk 0:01:01]}  Bxg2 {[%clk 0:01:35]} 26. Kxg2 {[%clk 0:01:02]}  Nd4 {[%clk 0:01:35]} 27. Qd3 {[%clk 0:00:53]}  Ne5 {[%clk 0:01:16]} 28. Qc3 {[%clk 0:00:51]}  Ndxf3 {[%clk 0:01:09]} 29. exf3 {[%clk 0:00:50]}  Nxf3 {[%clk 0:00:59]} 30. Rxe8 {[%clk 0:00:24]}  Nh4+ {[%clk 0:00:54]} 31. gxh4 {[%clk 0:00:19]}  Qxf2+ {[%clk 0:00:54]} 32. Kh1 {[%clk 0:00:20]}  Qf3+ {[%clk 0:00:17]} 33. Qxf3 {[%clk 0:00:20]}  Rxf3 {[%clk 0:00:18]} 34. Rde1 {[%clk 0:00:20]}  g5 {[%clk 0:00:17]} 35. h5 {[%clk 0:00:19]}  Rf7 {[%clk 0:00:16]} 36. R1e7 {[%clk 0:00:19]}  Kg7 {[%clk 0:00:16]} 37. Rxf7+ {[%clk 0:00:19]}  Kxf7 {[%clk 0:00:16]} 38. Re7+ {[%clk 0:00:19]} 1-0


[Site "https://www.chess.com"]

[Event "Late Titled Tuesday Blitz February 8 2022"]
[White "Kopczynski, Michal"]
[Black "Medeiros Jr, Francisco De Assis"]
[WhiteFideId "1124200"]
[BlackFideId "2114267"]
[WhiteElo "2235"]
[BlackElo "1998"]
[Result "1-0"]
[Round "10"]
[TimeControl "180+1"]
[Date "2022.02.09"]
[WhiteClock "0:02:00"]
[BlackClock "0:00:25"]

1. e4 {[%clk 0:03:00]}  c6 {[%clk 0:02:59]} 2. d4 {[%clk 0:03:01]}  d5 {[%clk 0:03:00]} 3. Nc3 {[%clk 0:03:01]}  g6 {[%clk 0:02:54]} 4. e5 {[%clk 0:03:01]}  h5 {[%clk 0:02:54]} 5. Be3 {[%clk 0:03:00]}  Bh6 {[%clk 0:02:53]} 6. Qd2 {[%clk 0:02:58]}  Bxe3 {[%clk 0:02:52]} 7. fxe3 {[%clk 0:02:57]}  Nh6 {[%clk 0:02:51]} 8. O-O-O {[%clk 0:02:55]}  Bg4 {[%clk 0:02:47]} 9. Nf3 {[%clk 0:02:55]}  Nf5 {[%clk 0:02:47]} 10. e4 {[%clk 0:02:53]}  dxe4 {[%clk 0:02:45]} 11. Nxe4 {[%clk 0:02:54]}  Nd7 {[%clk 0:02:41]} 12. Bc4 {[%clk 0:02:52]}  Bxf3 {[%clk 0:02:26]} 13. gxf3 {[%clk 0:02:50]}  Nb6 {[%clk 0:02:24]} 14. Bb3 {[%clk 0:02:47]}  e6 {[%clk 0:02:20]} 15. Nf6+ {[%clk 0:02:45]}  Kf8 {[%clk 0:02:18]} 16. Rhg1 {[%clk 0:02:39]}  Nd5 {[%clk 0:02:16]} 17. Bxd5 {[%clk 0:02:32]}  cxd5 {[%clk 0:02:17]} 18. Rg2 {[%clk 0:02:23]}  Rc8 {[%clk 0:02:04]} 19. Rdg1 {[%clk 0:02:22]}  Qb6 {[%clk 0:01:53]} 20. Nd7+ {[%clk 0:02:21]}  Ke7 {[%clk 0:01:25]} 21. Nxb6 {[%clk 0:02:22]}  axb6 {[%clk 0:01:25]} 22. Qb4+ {[%clk 0:02:20]}  Kd7 {[%clk 0:01:24]} 23. Qxb6 {[%clk 0:02:15]}  Rc6 {[%clk 0:01:24]} 24. Qxb7+ {[%clk 0:02:14]}  Rc7 {[%clk 0:01:21]} 25. Qb5+ {[%clk 0:02:14]}  Ke7 {[%clk 0:01:20]} 26. Qb4+ {[%clk 0:02:12]}  Kd7 {[%clk 0:00:34]} 27. Rg5 {[%clk 0:02:11]}  Rhc8 {[%clk 0:00:32]} 28. c3 {[%clk 0:02:07]}  Ne3 {[%clk 0:00:31]} 29. Qd6+ {[%clk 0:02:04]}  Ke8 {[%clk 0:00:30]} 30. Rxg6 {[%clk 0:02:04]}  fxg6 {[%clk 0:00:28]} 31. Qxe6+ {[%clk 0:02:02]}  Re7 {[%clk 0:00:28]} 32. Qxc8+ {[%clk 0:02:02]}  Kf7 {[%clk 0:00:26]} 33. Qc6 {[%clk 0:02:01]}  Rc7 {[%clk 0:00:26]} 34. Qxc7+ {[%clk 0:02:01]}  Kg8 {[%clk 0:00:26]} 35. Rxg6+ {[%clk 0:02:00]}  Kh8 {[%clk 0:00:25]} 36. Qg7# {[%clk 0:02:00]} 1-0


[Site "https://www.chess.com"]